[Event "12th WLC Weekend 2022"]
[Site "Eindhoven"]
[Date "2022.05.15"]
[Round "6.5"]
[White "Koster, Chiel"]
[Black "Van Roon, Sjoerd"]
[Result "1/2-1/2"]
[ECO "B90"]
[WhiteElo "1924"]
[BlackElo "2264"]
[Annotator "TA"]
[PlyCount "114"]
[EventDate "2022.05.13"]
[EventType "swiss"]
[EventCountry "NED"]
[SourceTitle "playchess.com"]
[Source "ChessBase"]
[SourceQuality "1"]
[TimeControl "5400+30"]

{[%evp 13,114,36,35,47,51,28,27,25,47,54,47,38,68,72,86,77,80,25,39,37,22,0,0,-35,-28,-31,-28,-43,-45,-36,-20,-22,0,7,100,93,93,88,162,162,157,163,149,165,156,140,229,219,214,227,368,374,415,411,435,428,572,570,747,742,886,861,1147,1114,1100,658,664,643,649,643,609,541,570,560,537,400,438,424,1092,700,610,338,250,141,159,0,0,0,0,0,0,0,0,0,0,0,0,0,0,0,0,0,0]} 1. e4 {[%emt 0:00:02]} c5 {[%emt 0:00:04]} 2. Nf3 {[%emt 0:00:02][%cal Bg1f3,Bf3d4,Bd4e2,Be2g3][%mdl 32]} d6 {[%emt 0:00:27]} 3. d4 {[%emt 0:00:06]} cxd4 {[%emt 0:00:02]} 4. Nxd4 {[%emt 0:00:04]} Nf6 {[%emt 0:00:05]} 5. Nc3 {[%emt 0:00:04]} a6 {[%emt 0:00:43]} 6. h3 {[%emt 0:00:10]} e5 {[%emt 0:01:29] 6...e5 is better than 6...e6.} 7. Nde2 {[%emt 0:00:14]} Be7 {[%emt 0:00:33]} 8. g4 {[%emt 0:00:08] B90: Sicilian Najdorf: Unusual White 6th moves, 6 Be3 Ng4 and 6 Be3 e5.} h6 {[%emt 0:01:19]} 9. Bg2 {[%emt 0:00:13]} b5 {[%emt 0:01:44]} 10. Be3 {[%emt 0:00:29] White has an edge.} Bb7 {[%emt 0:00:54]} 11. O-O {[%emt 0:00:31]} O-O {[%emt 0:01:43]} 12. Ng3 {[%emt 0:00:51]} b4 {[%emt 0:01:46]} 13. Nd5 {[%emt 0:01:12] White is more active.} Nxd5 {[%emt 0:03:33]} 14. exd5 {[%emt 0:00:06]} Bg5 {[%emt 0:01:36]} 15. Qd2 {[%emt 0:00:23] [#]} ({White should try} 15. Ne4 $16) 15... Bxe3 $146 {[%emt 0:03:19]} ({Predecessor:} 15... a5 16. a3 Bxe3 17. fxe3 Na6 18. Rf2 bxa3 19. Rxa3 Nc5 20. Ne4 Nxe4 21. Bxe4 Bc8 {0-1 (43) Gavi,S (1971)-Sanjeev,K (2156) Mumbai 2016}) 16. fxe3 {[%emt 0:00:20]} a5 {[%emt 0:00:45]} 17. Rf2 {[%emt 0:02:20]} (17. a3 $5 {[%cal Ra3b4]}) 17... Nd7 {[%emt 0:01:54]} 18. Nf5 {[%emt 0:01:35]} Nc5 {[%emt 0:05:25]} 19. a3 {[%emt 0:01:01]} b3 {[%emt 0:03:27]} 20. c3 {[%emt 0:02:23]} Ba6 {[%emt 0:02:37]} 21. e4 {[%emt 0:00:39][%cal Of5h6]} Kh7 {[%emt 0:10:07]} 22. h4 {[%emt 0:03:52]} Nd3 {[%emt 0:02:33]} 23. Rf3 {[%emt 0:00:26]} Nf4 {[%emt 0:00:05]} (23... Nc5 $11) 24. Rxf4 $16 {[%emt 0:00:26]} exf4 {[%emt 0:00:06]} 25. Qxf4 {[%emt 0:00:06]} Qf6 {[%emt 0:00:47]} (25... Qb6+ $16 26. Kh1 f6) 26. Qxd6 $18 {[%emt 0:00:26]} Qxd6 {[%emt 0:00:17]} 27. Nxd6 {[%emt 0:00:06]} Rad8 {[%emt 0:08:18]} 28. Nf5 {[%emt 0:00:39]} ({Don't do} 28. e5 f6 $14) 28... Rfe8 {[%emt 0:02:42]} 29. Kf2 {[%emt 0:02:14] Inhibits Be2.} Bc8 {[%emt 0:04:10]} (29... g6 $16) 30. Ne3 {[%emt 0:03:04]} g6 {[%emt 0:03:29]} 31. c4 {[%emt 0:01:34][%cal Bc3c4,Bc4c5,Bc5c6,Bc6c7][%mdl 32] Hoping for c5.} Kg7 {[%emt 0:02:37]} (31... f5 $142 32. gxf5 (32. exf5 gxf5 33. gxf5 Re5 $18) 32... gxf5 33. exf5 (33. Nxf5 Bxf5 34. exf5 Rc8 $16) 33... Re5) 32. c5 {[%emt 0:01:49]} Ba6 {[%emt 0:01:24]} 33. Rd1 {[%emt 0:01:19]} Rc8 {[%emt 0:08:12]} 34. c6 {[%emt 0:03:01]} Bb5 {[%emt 0:03:17]} 35. Rc1 {[%emt 0:09:13]} Kf6 {[%emt 0:00:48]} 36. Rc5 {[%emt 0:00:52]} Ba4 {[%emt 0:02:14]} 37. Nc4 {[%emt 0:00:32]} Rb8 {[%emt 0:01:30]} 38. c7 {[%emt 0:04:57]} Rbc8 {[%emt 0:00:35]} 39. Nd6 {[%emt 0:01:11]} Ke5 {[%emt 0:00:25]} 40. Nxe8 {[%emt 0:01:37]} Bxe8 {[%emt 0:00:07][%mdl 4096] Endgame KRB-KRB} 41. Ke3 {[%emt 0:00:08]} Bd7 {[%emt 0:01:28]} 42. Bf3 {[%emt 0:02:50]} g5 {[%emt 0:02:10]} 43. h5 {[%emt 0:01:26]} f6 {[%emt 0:01:00]} 44. Be2 {[%emt 0:00:24] aiming for Ba6.} Kd6 {[%emt 0:03:46]} 45. Kd4 {[%emt 0:03:49]} a4 {[%emt 0:02:24]} (45... Rxc7 $142 46. Rxa5 Rc2) 46. Ra5 {[%emt 0:03:41]} Kxc7 {[%emt 0:00:28]} 47. Rc5+ {[%emt 0:04:07]} Kd6 {[%emt 0:00:15] [#]} 48. Rxc8 {[%emt 0:00:11]} (48. Rc4 $1 $18) 48... Bxc8 {[%emt 0:00:02] [#] KB-KB} 49. Ke3 $2 {[%emt 0:03:48]} (49. Bb5 $1 $16 {[%cal Rb5a4]}) 49... Bd7 $11 {[%emt 0:01:23] The position is equal.} 50. Kf3 {[%emt 0:02:34]} Ke5 {[%emt 0:00:25]} 51. Bd3 {[%emt 0:00:41]} Kd4 {[%emt 0:00:27]} 52. Ba6 {[%emt 0:00:26]} Ke5 {[%emt 0:01:44]} 53. Bb7 {[%emt 0:00:05]} Kd6 {[%emt 0:00:33]} 54. Ba8 {[%emt 0:00:22]} Kc5 {[%emt 0:00:40]} 55. Bb7 {[%emt 0:03:27]} Kd6 {[%emt 0:00:06]} 56. Ba8 {[%emt 0:03:33]} Kc5 {[%emt 0:00:10]} 57. Bb7 {[%emt 0:00:06]} Kd6 {[%emt 0:00:14] Black escapes into a draw.  Weighted Error Value: White=0.37/Black=0.20 (precise)} 1/2-1/2

[Event "12th WLC Weekend 2022"]
[Site "Eindhoven"]
[Date "2022.05.15"]
[Round "6.6"]
[White "Bruil, Rembrandt"]
[Black "Hubers, Daan"]
[Result "1-0"]
[ECO "D46"]
[WhiteElo "2122"]
[BlackElo "1818"]
[Annotator "TA"]
[PlyCount "97"]
[EventDate "2022.05.13"]
[EventType "swiss"]
[EventCountry "NED"]
[SourceTitle "playchess.com"]
[Source "ChessBase"]
[SourceQuality "1"]
[TimeControl "5400+30"]

{[%evp 15,97,31,35,25,42,45,21,43,39,40,35,40,37,-16,29,18,49,0,22,46,73,0,82,105,247,85,335,134,160,87,187,81,306,137,139,144,150,103,125,111,125,123,119,116,186,199,197,189,180,176,273,258,256,230,296,292,291,279,264,232,243,129,304,293,391,316,317,294,286,285,288,248,281,281,278,266,273,273,486,490,992,980,2441,1446]} 1. d4 {[%emt 0:00:02]} d5 {[%emt 0:00:03]} 2. Nf3 {[%emt 0:00:27]} Nf6 {[%emt 0:00:09]} 3. c4 {[%emt 0:00:07]} e6 {[%emt 0:00:05]} 4. Nc3 {[%emt 0:00:05]} c6 {[%emt 0:00:07]} 5. e3 {[%emt 0:00:10]} Bb4 {[%emt 0:01:05]} 6. Bd3 {[%emt 0:01:25]} Nbd7 {[%emt 0:01:04]} 7. O-O {[%emt 0:00:21]} O-O {[%emt 0:00:34]} 8. Qc2 {[%emt 0:00:21]} Re8 {[%emt 0:03:51]} 9. Rd1 {[%emt 0:05:18] [#] D46: Semi-Slav: 5 e3 Nbd7 6 Bd3, Black avoids the Meran.} (9. Ne5 {with more complications.} h6 10. a3 Be7 11. Rd1) 9... e5 $146 {[%emt 0:06:44]} ({Predecessor:} 9... h6 10. b3 Qe7 11. a3 Bxc3 12. Qxc3 e5 13. dxe5 Nxe5 14. Qxe5 Qxe5 15. Nxe5 Rxe5 16. Bb2 Re8 17. Bxf6 gxf6 18. cxd5 cxd5 {0-1 (34) Ganesan,K (1933)-Chetina,E (1850) Iasi 2013}) 10. dxe5 {[%emt 0:04:26]} (10. Nxe5 {is interesting.} Nxe5 11. dxe5 Rxe5 12. cxd5 cxd5 13. Ne2) 10... Nxe5 {[%emt 0:00:38]} 11. Nxe5 {[%emt 0:05:55] The position is equal.} Rxe5 {[%emt 0:00:16]} 12. cxd5 {[%emt 0:00:26]} cxd5 {[%emt 0:06:04]} 13. Bd2 {[%emt 0:05:43][%cal Oc3d5]} Bg4 {[%emt 0:09:15]} 14. f3 {[%emt 0:17:23]} (14. Ne2 $14 Rc8 15. Qa4 Bxd2 16. Rxd2) 14... Bh5 {[%emt 0:15:38]} 15. Kh1 {[%emt 0:10:05][%cal Oc3d5]} Rc8 {[%emt 0:03:27]} 16. Qb3 {[%emt 0:01:03]} (16. Rac1 $14) 16... Bd6 {[%emt 0:08:37][%cal Oh5f3]} 17. Ne2 {[%emt 0:03:52]} Nd7 {[%emt 0:14:04][%cal Oh5f3]} 18. Bb4 {[%emt 0:07:20]} (18. Qxb7 $2 Nc5 19. Ba5 (19. Qb5 $2 Rb8 $19) 19... Qf8 $19) (18. Bc3 $16 Nc5 19. Qc2 Nxd3 20. Qxd3) 18... Bb8 {[%emt 0:03:33]} (18... Nc5 $11 19. Bxc5 Bxc5) 19. Nf4 $16 {[%emt 0:01:48]} Rc6 {[%emt 0:04:46] [#]} (19... Nb6 $16) 20. Rac1 $2 {[%emt 0:06:36]} (20. Nxd5 $6 a5 $16) (20. Bb5 $1 $18 {and the rest is easy.} Rc8 21. Bxd7 (21. Rxd5 Rxd5 22. Qxd5 Nf6 $18) 21... Qxd7 22. Nxd5 (22. Rxd5 Rxd5 23. Nxd5 Kh8 $16)) 20... Rh6 $2 {[%emt 0:02:11]} (20... Qc7 $16 {was called for.} 21. Rxc6 bxc6) 21. Qc3 {[%emt 0:03:02]} (21. Nxd5 $2 Bxf3 22. Nf6+ (22. gxf3 Rxh2+ 23. Kxh2 Qh4+ 24. Kg2 Rg5+ 25. Kf1 Qh1+ 26. Kf2 Rg2#) 22... gxf6 $19) (21. Bf1 $18) 21... Rc6 {[%emt 0:03:50]} 22. Qe1 {[%emt 0:02:12]} ({White should play} 22. Qd2) 22... Qe8 {[%emt 0:01:20]} (22... d4 $16 23. e4 (23. Rxc6 bxc6 24. Qg1 c5 $16) 23... Nf6) 23. Qf2 {[%emt 0:04:00]} (23. Qd2 $18 {and White stays clearly on top.}) 23... Rh6 $2 {[%emt 0:02:13]} (23... Bg6 $16 {was worth a try.}) 24. Rc2 {[%emt 0:01:43]} (24. Bb5 $18 {has better winning chances.}) 24... Nb6 {[%emt 0:01:24]} 25. Bc5 {[%emt 0:01:32] 0x0.001df4b59e1adp-1022s more active pieces.} Bg6 {[%emt 0:01:10]} 26. Bd4 {[%emt 0:04:17]} (26. g3 $142) 26... Re6 {[%emt 0:01:58]} 27. h3 {[%emt 0:01:49]} ({Resist} 27. Nxe6 Bxh2 28. Bxg7 Bg3+ 29. Bxh6 Bxf2 30. Bxg6 (30. Rxf2 fxe6 31. Bxg6 hxg6 $16) 30... hxg6) 27... Bxf4 {[%emt 0:01:35]} 28. exf4 {[%emt 0:00:02] [#] And now f5 would win.} Bxd3 {[%emt 0:00:17]} 29. Rxd3 {[%emt 0:00:01]} Re1+ {[%emt 0:01:49]} (29... Rc6 $16) 30. Kh2 $18 {[%emt 0:00:01] Strongly threatening Bxb6.} Rhe6 {[%emt 0:00:46]} 31. Bxb6 {[%emt 0:01:38]} axb6 {[%emt 0:00:27]} 32. Rxd5 {[%emt 0:00:09]} Qb8 {[%emt 0:02:24]} (32... h6 $142 33. Qd4 Rc6) 33. Qd4 {[%emt 0:01:21] Black must now prevent Rd8+.} Re8 {[%emt 0:01:01] Against Rd8} 34. Rd7 {[%emt 0:00:20] Hoping for Rcc7.} R1e6 {[%emt 0:01:50]} 35. Rcc7 {[%emt 0:01:06]} Rf6 {[%emt 0:00:30]} 36. Qd5 {[%emt 0:01:13][%cal Rd7f7]} ({Don't take} 36. Rxb7 Qxf4+ 37. Qxf4 Rxf4 38. Rxb6 Ra4 $18) 36... Rf8 {[%emt 0:01:09]} 37. Qxb7 {[%emt 0:01:45][%cal Od7f7] aiming for Rxf7!} Qe8 {[%emt 0:00:02]} 38. Qe4 {[%emt 0:04:25] Inhibits Qe3.} (38. Re7 $18 Qb5 39. Qe4) 38... Re6 {[%emt 0:00:29]} (38... Qxe4 $16 39. fxe4 Rxf4) 39. Qd4 {[%emt 0:00:54]} Re2 {[%emt 0:00:41]} 40. Qb4 {[%emt 0:01:42]} h5 {[%emt 0:01:14]} 41. Re7 {[%emt 0:03:01] Prevents Qe3.} Rxe7 {[%emt 0:00:16]} 42. Rxe7 {[%emt 0:00:07][%mdl 4096] Endgame KQR-KQR} ({Don't play} 42. Qxe7 $6 Qa4 43. Qd6 Qxa2 44. Qxb6 Qe6 $18) 42... Qc6 {[%emt 0:00:22]} 43. Re2 {[%emt 0:00:33]} h4 {[%emt 0:00:16]} 44. Qe4 {[%emt 0:00:28]} Qc1 {[%emt 0:00:40]} 45. f5 {[%emt 0:00:39]} Qc7+ {[%emt 0:00:45]} 46. Qe5 {[%emt 0:00:04]} Qa7 {[%emt 0:00:52]} (46... Qxe5+ 47. Rxe5 Ra8) 47. f6 {[%emt 0:00:13] White wants to mate with Qg5. White is clearly winning.} gxf6 {[%emt 0:01:43]} (47... Qb8 $142 48. fxg7 Qxe5+ 49. Rxe5 Kxg7) 48. Qxf6 {[%emt 0:00:09]} Rc8 {[%emt 0:00:13]} 49. Re5 {[%emt 0:01:10] Weighted Error Value: White=0.38/Black=0.66} 1-0

[Event "12th WLC Weekend 2022"]
[Site "Eindhoven"]
[Date "2022.05.15"]
[Round "6.7"]
[White "Klapwijk, Bram"]
[Black "van der Valk, Niklas"]
[Result "1/2-1/2"]
[ECO "B10"]
[WhiteElo "2245"]
[BlackElo "2200"]
[Annotator "TA"]
[PlyCount "103"]
[EventDate "2022.05.13"]
[EventType "swiss"]
[EventCountry "NED"]
[SourceTitle "playchess.com"]
[Source "ChessBase"]
[SourceQuality "1"]
[TimeControl "5400+30"]

{[%evp 9,103,0,45,33,49,45,52,61,55,40,69,21,79,51,58,28,72,64,83,52,52,66,64,45,56,0,39,37,66,43,28,-12,94,71,102,94,150,100,233,215,224,123,166,-133,-120,-122,-141,-127,-146,-128,-125,-123,-158,-164,-88,-260,-272,-230,-108,-110,407,-361,-158,-308,-113,-96,-84,-75,0,-325,-362,-352,-349,-391,-18,-18,8,8,8,0,0,0,0,0,8,0,0,0,0,0,0,0,0,0,0,0]} 1. e4 {[%emt 0:01:49]} c6 {[%emt 0:00:10]} 2. Bc4 {[%emt 0:00:37]} e6 {[%emt 0:03:14]} 3. Bb3 {[%emt 0:04:58] [#]} c5 $146 {[%emt 0:04:05]} ({Predecessor:} 3... d5 4. e5 c5 5. c3 Qg5 6. Nf3 Qxg2 7. Rg1 Qh3 8. Rg3 Qh5 9. d4 Ne7 {1-0 (39) Pires,E (2115)-Fernandes,M (2066) Lisbon 2019}) 4. d4 {[%emt 0:07:32]} cxd4 {[%emt 0:00:40]} 5. Nf3 {[%emt 0:00:11]} Nf6 {[%emt 0:07:15]} 6. e5 {[%emt 0:05:11] B10: Caro-Kann: 2 d3 and 2 c4.} Ne4 {[%emt 0:03:35]} 7. Qxd4 {[%emt 0:01:13]} f5 {[%emt 0:04:45]} 8. exf6 {[%emt 0:01:02] White is slightly better.} Nxf6 {[%emt 0:00:07]} 9. c3 {[%emt 0:19:45]} Nc6 {[%emt 0:00:34]} 10. Qh4 {[%emt 0:01:13]} (10. Qd3 $1 $14 {should be considered.}) 10... g6 {[%emt 0:15:19]} (10... Bc5 $11 {remains equal.}) 11. Bg5 {[%emt 0:09:11]} Bg7 {[%emt 0:00:51]} 12. Nbd2 {[%emt 0:02:41]} h6 {[%emt 0:03:04]} 13. Be3 {[%emt 0:02:34]} g5 {[%emt 0:06:55]} 14. Qc4 {[%emt 0:00:17]} d5 {[%emt 0:10:41]} 15. Qd3 {[%emt 0:01:11]} O-O {[%emt 0:00:17]} 16. O-O-O {[%emt 0:09:08]} Bd7 {[%emt 0:04:23]} 17. Bc5 {[%emt 0:07:00]} (17. Rhe1 $14) 17... a5 {[%emt 0:06:14]} 18. Rhe1 {[%emt 0:02:03]} a4 {[%emt 0:01:39]} 19. Bc2 {[%emt 0:00:06] 0x0.0008426e145bdp-1022s more active pieces.} (19. Bxf8 axb3 20. Bxg7 bxa2 $19) 19... a3 {[%emt 0:01:57]} 20. b3 {[%emt 0:01:21] [#] And now h4 would win.} Qa5 {[%emt 0:04:43]} 21. Bd6 $16 {[%emt 0:09:23]} Rfc8 {[%emt 0:07:44]} 22. Ne5 $1 {[%emt 0:02:10]} Nxe5 {[%emt 0:02:33]} (22... Nb8 $142) 23. Bxe5 {[%emt 0:00:04]} Qd8 {[%emt 0:02:39]} (23... Bb5 $16 {might work better.} 24. c4 (24. Qg6 Be8 $14) 24... dxc4 25. Nxc4 Bxc4 26. bxc4 Rd8) 24. Re3 {[%emt 0:01:42] Threatens to win with Bxf6.} (24. Qg6 Be8 25. Qd3 Bh5 $14) 24... Qe7 {[%emt 0:00:41]} 25. Rf3 {[%emt 0:08:46]} (25. f4 $18) 25... Rf8 {[%emt 0:01:53]} 26. Qg6 $2 {[%emt 0:00:22] [#]} (26. h4 $1 $18 {[%cal Rh4g5] Strongly threatening hxg5.} gxh4 27. Rf4 (27. Qg6 Be8 $15)) 26... Be8 $1 $17 {[%emt 0:01:56]} 27. Qd3 {[%emt 0:00:24]} Bh5 {[%emt 0:01:13]} 28. Re1 {[%emt 0:01:36]} Bxf3 {[%emt 0:01:07]} 29. gxf3 {[%emt 0:00:27][%cal Oh2h4]} Rf7 {[%emt 0:00:45]} 30. Nf1 {[%emt 0:00:50]} Kf8 {[%emt 0:01:27]} 31. Ng3 {[%emt 0:00:31] Against Nh5} Ne8 {[%emt 0:02:27]} (31... Rc8 $19 {Hoping for ...Ne8.} 32. Re3 Rc6) 32. Nh5 $2 {[%emt 0:00:32]} (32. Bxg7+ $17 {is the only way for White.} Rxg7 33. Nf5) 32... Bxe5 $19 {[%emt 0:00:56]} 33. Rxe5 {[%emt 0:00:06]} Qc7 {[%emt 0:00:37]} (33... Nf6 $19 34. Qg6 Qd6) 34. Rxe6 $17 {[%emt 0:00:49] Black must now prevent Qd4.} Qxh2 $2 {[%emt 0:00:18][%mdl 8192]} (34... Ra6 $17 35. Re3 Qc5) 35. Rxh6 {[%emt 0:00:30][%mdl 8192] Really sharp!} (35. Qd4 Re7 36. Qh8+ (36. Rxh6 Qe5 $11) 36... Kf7 37. Rf6+ (37. Rxe7+ Kxe7 38. Ng3 Qg1+ 39. Bd1 Qxf2 $19) 37... Nxf6 38. Qg7+ (38. Qxf6+ Ke8 $15) 38... Ke6 39. Bf5+ Kd6 40. Qxf6+ Kc7 41. Qxe7+ Kc6 42. Qd7+ (42. Qe6+ Qd6 $16) 42... Kb6 43. Qe6+ (43. Qxd5 Qg1+ 44. Qd1 Qxd1+ 45. Kxd1 Kc5 $18) 43... Kc7 44. Qe7+ (44. Qxd5 Qg1+ 45. Qd1 Qxd1+ 46. Kxd1 Rf8 $18) 44... Kc6 $18) (35. Qg6 $18 {is the narrow road to win.} Qg1+ 36. Bd1 Qxf2 37. Qxh6+ Rg7 38. Re2) 35... Qg1+ {[%emt 0:00:31]} (35... Qxf2 $19 {is more deadly.} 36. Rh8+ Ke7 37. Qxd5 Qe1+ 38. Qd1 Qe5) 36. Qd1 {[%emt 0:00:43]} (36. Bd1 $17 Qxf2 37. Be2) 36... Qxd1+ $2 {[%emt 0:00:22]} (36... Qxf2 $19 {has better winning chances.} 37. Rh8+ Ke7) 37. Bxd1 {[%emt 0:00:06]} Rc8 {[%emt 0:00:38]} 38. Kd2 {[%emt 0:00:11]} Rfc7 {[%emt 0:00:41]} ({Better is} 38... Rc5 $17) 39. Bc2 $2 {[%emt 0:01:13][%mdl 8192]} (39. f4 $11 {and White is okay.} Rxc3 40. fxg5) 39... Rxc3 $19 {[%emt 0:00:28]} 40. Bf5 {[%emt 0:00:06]} R8c7 {[%emt 0:00:29]} 41. f4 {[%emt 0:00:28] [#]} gxf4 $2 {[%emt 0:00:32]} (41... Rxb3 $3 $19 {[%mdl 512]} 42. fxg5 (42. axb3 $2 a2 $19) 42... Rb2+ 43. Ke3 Rxa2 44. Rh8+ Ke7) 42. Nxf4 $11 {[%emt 0:00:07] The position is equal.} R3c6 {[%emt 0:00:33]} (42... Rf3 $5 {[%cal Rf3f4]} 43. Ne6+ Ke7 44. Nxc7 Nxc7 $17) 43. Ne6+ {[%emt 0:00:30]} Rxe6 {[%emt 0:00:20]} 44. Bxe6 {[%emt 0:00:21][%mdl 4096] Endgame KRB-KRN} Rc6 {[%emt 0:00:36] ...Ke7 is the strong threat.} 45. Rh8+ {[%emt 0:00:08]} Ke7 {[%emt 0:00:05]} 46. Bg4 {[%emt 0:00:24]} ({Don't play} 46. Bxd5 Rd6 47. Rh7+ Kd8 48. Rxb7 (48. Rh5 $2 Nf6 $19) 48... Nc7 $17) 46... Nf6 {[%emt 0:00:27] Against Rh7+} 47. f3 {[%emt 0:01:44]} Nxg4 {[%emt 0:00:59]} 48. fxg4 {[%emt 0:00:06]} Rg6 {[%emt 0:00:26]} 49. Ra8 {[%emt 0:00:24]} Rxg4 {[%emt 0:00:30]} 50. Rxa3 {[%emt 0:00:04]} Kd6 {[%emt 0:00:23]} 51. Ra7 {[%emt 0:00:44]} Kc5 {[%emt 0:00:38]} 52. Rxb7 {[%emt 0:00:48] Never resign too early!  Weighted Error Value: White=0.65/Black=0.64} 1/2-1/2